Cogmind - Beta 14 @@@ ROGUE MODE // 2024.08.08 @ 22:16:21 Player: Wotf Result: Destroyed by G-73 Enforcer with Phase Gun Performance ------------- Evolutions (8) 4000 Regions Visited (13) 2600 Robots Destroyed (61) 305 Value Destroyed (1345) 1345 Prototype IDs (27) 540 Alien Tech Used (0) 0 Bonus (2215) 2215 TOTAL SCORE: 11005 Bonus ------- Triggered Max Security 2000 Follower Combat Kills 226 Aligned with FarCom 300 Friendly Fire -311 Cogmind --------- Core Integrity 0/1450 Matter 267/300 Energy 100/100 System Corruption 2% Temperature Cool (0) Movement Core (50) Location -2/Section 7 Parts ------- > --- POWER (2) -------- (None) > --- PROPULSION (6) --- (None) > --- UTILITY (13) ----- Enhanced Optical Array Hacking Suite > --- WEAPON (2) ------- (None) > --- INVENTORY (5) ---- (None) Peak State ------------ > --- POWER ------------ Light Antimatter Reactor Particle Reactor > --- PROPULSION ------- Cooled VTOL Module Cooled VTOL Module Nuclear Pulse Array Field Propulsion Array > --- UTILITY ---------- Enhanced Optical Array Energy Filter Advanced Transmission Jammer Hacking Suite Advanced Recalibrator > --- WEAPON ----------- Heavy Pick > --- INVENTORY -------- Quantum Reactor Quantum Reactor Improved Diametric Drive Improved Melee Analysis Suite [Rating: 86] Favorites ----------- Power Light Nuclear Core Engine Ion Engine Power Core Light Nuclear Core Reactor Micro Antimatter Reactor Propulsion Light Treads Treads Light Treads Wheel Compact Wheel Flight Unit Cooled VTOL Module Utility Medium Storage Unit Device Improved Heat Sink Storage Medium Storage Unit Processor Targeting Computer Hackware Hacking Suite Protection Improved Light Armor Plating Weapon Light EM Pulse Cannon Energy Gun EM Pulse Gun Energy Cannon Light EM Pulse Cannon Ballistic Gun Assault Rifle Launcher Grenade Launcher Special Weapon Remote Datajack Piercing Weapon Heavy Pick Build | -11 -10 -10 -10 -9 -8 -7 -6 -5 -4 -3 -2 -2 -2 ------- Run | Yrd Mat Min Exi Min Mat Fac Fac Fac Fac Res Res Tes Sec Slots Evolved 16 | . . . . . 4 2 2 2 2 2 2 . . Power 1 | . . . . . . . 1 . . . . . . Propulsion 4 | . . . . . 2 . 1 . . . 1 . . Utility 11 | . . . . . 2 2 . 2 2 2 1 . . Weapon . | . . . . . . . . . . . . . . Parts Attached 103 | 7 18 4 1 2 18 19 1 . 5 12 5 3 8 Power 25 | 1 3 1 . . 4 4 . . 2 4 2 1 3 Engine 5 | 1 2 . . . . 2 . . . . . . . Core 12 | . 1 1 . . 4 2 . . 2 2 . . . Reactor 8 | . . . . . . . . . . 2 2 1 3 Propulsion 24 | 2 5 1 . . 4 6 1 . 2 . 2 . 1 Treads 6 | . 5 1 . . . . . . . . . . . Leg . | . . . . . . . . . . . . . . Wheel 2 | 2 . . . . . . . . . . . . . Hover . | . . . . . . . . . . . . . . Flight 16 | . . . . . 4 6 1 . 2 . 2 . 1 Utility 32 | 2 4 . 1 . 5 6 . . 1 7 1 2 3 Device 18 | 1 1 . . . 3 3 . . . 7 . 2 1 Storage 6 | 1 2 . 1 . . 2 . . . . . . . Processor 3 | . 1 . . . . . . . . . . . 2 Hackware 2 | . . . . . . 1 . . 1 . . . . Protection 3 | . . . . . 2 . . . . . 1 . . Artifact . | . . . . . . . . . . . . . . Weapon 22 | 2 6 2 . 2 5 3 . . . 1 . . 1 Energy Gun 3 | 2 1 . . . . . . . . . . . . Energy Cannon 5 | . 3 1 . . 1 . . . . . . . . Ballistic Gun 7 | . 2 1 . 1 1 2 . . . . . . . Ballistic Cannon . | . . . . . . . . . . . . . . Launcher 4 | . . . . 1 3 . . . . . . . . Special Weapon 1 | . . . . . . 1 . . . . . . . Impact Weapon . | . . . . . . . . . . . . . . Slashing Weapon . | . . . . . . . . . . . . . . Piercing Weapon 2 | . . . . . . . . . . 1 . . 1 Special Melee Weapon . | . . . . . . . . . . . . . . Unidentified Prototypes 2 | . . . . . . 1 . . . . . . 1 Parts Lost 33 | . 1 . . 1 12 . 2 . . . 2 2 13 Power 7 | . . . . . 3 . . . . . . . 4 Propulsion 12 | . . . . . 5 . 1 . . . 1 . 5 Utility 12 | . 1 . . . 4 . 1 . . . 1 2 3 Weapon 2 | . . . . 1 . . . . . . . . 1 Highest Loss Streak 8 | . 1 . . 1 5 . 2 . . . 2 2 8 To Critical Strikes . | . . . . . . . . . . . . . . Average Slot Usage (%) 74 | . 97 100 100 99 65 56 25 11 33 42 46 45 39 Engine 4 | . 13 . . . . 4 . . . . . . . Core 5 | . . 14 14 14 7 1 . . 7 4 . . . Reactor 1 | . . . . . . . . . . 3 7 8 5 Treads 16 | . 28 28 28 28 10 . . . . . . . . Flight 5 | . . . . . 3 22 10 5 15 14 16 17 12 Device 9 | . 5 14 14 14 15 12 3 . . 9 8 12 9 Storage 9 | . 14 14 14 14 8 5 3 . . . . . . Processor 2 | . 8 . . . . . . . . . . . 3 Hackware 2 | . . . . . . 5 6 5 10 9 7 4 4 Energy Gun 2 | . 7 . . . . . . . . . . . . Energy Cannon 9 | . 7 27 28 25 4 . . . . . . . . Ballistic Gun 3 | . 11 . . . 4 1 . . . . . . . Peak Build Rating 86 | 9 14 14 14 14 17 35 14 10 37 68 73 78 86 Average Rating 21 | 5 9 13 13 13 13 22 12 9 31 52 65 76 66 On Entrance 25 | . 9 14 14 14 13 10 14 10 10 37 58 70 77 Naked Turns . | . . . . . . . . . . . . . . Heaviest Build 38 | 12 24 24 24 24 28 23 12 . 12 21 34 38 38 Greatest Support 40 | 32 40 40 40 40 40 25 5 5 23 23 38 38 38 Greatest Overweight (x) 5 | . . . . . 5 5 3 . . . . . 1 Average Overweight (x) . | . . . . . . . . . . . . . . Largest Inventory Capacity 10 | 8 10 10 10 10 10 10 10 5 5 5 5 5 5 Average Capacity 8 | 6 9 10 10 10 9 8 8 5 5 5 5 5 5 Most Carried 10 | 8 10 10 10 10 10 10 10 5 4 3 5 5 5 Average Carried 7 | 5 8 10 9 9 8 7 8 4 . 1 4 4 3 Final Capacity 10 | 8 10 10 10 10 5 10 5 5 5 5 5 5 5 Final Carried 10 | 8 10 10 10 10 5 10 5 5 . 3 5 4 . Class Distribution -------------------- 59% | Mutant 20% | Scavenger-Mutant 12% | Hacker-Sprinter 6% | Sprinter Dominant Class ---------------- Mutant | -10/Materials Scavenger-Mutant | -10/Mines Mutant | -10/Exiles Mutant | -9/Mines Scavenger-Mutant | -8/Materials Scavenger-Mutant | -7/Factory Mutant | -6/Factory Mutant | -5/Factory Mutant | -4/Factory Hacker-Sprinter | -3/Research Hacker-Sprinter | -2/Research Sprinter | -2/Testing Sprinter | -2/Section 7 Resources | -11 -10 -10 -10 -9 -8 -7 -6 -5 -4 -3 -2 -2 -2 ----------- Run | Yrd Mat Min Exi Min Mat Fac Fac Fac Fac Res Res Tes Sec Matter Collected 1660 | 270 360 63 . 84 170 197 . 86 . 296 118 . 16 Remotely . | . . . . . . . . . . . . . . Salvage Created 2358 | 166 1139 159 . 250 542 102 . . . . . . . Parts 138 | 8 63 10 . 14 31 12 . . . . . . . Haulers Intercepted 4 | . 2 . . . . 2 . . . . . . . Recyclers Shooed 3 | . 2 . . . 1 . . . . . . . . Parts Field Recycled . | . . . . . . . . . . . . . . Retrieved Matter . | . . . . . . . . . . . . . . Parts Self-Destructed . | . . . . . . . . . . . . . . Prevented . | . . . . . . . . . . . . . . Kills | -11 -10 -10 -10 -9 -8 -7 -6 -5 -4 -3 -2 -2 -2 ------- Run | Yrd Mat Min Exi Min Mat Fac Fac Fac Fac Res Res Tes Sec Combat Hostiles Destroyed 28 | . 14 5 . 1 8 . . . . . . . . Guns 10 | . 7 1 . . 2 . . . . . . . . Cannons 12 | . 7 4 . 1 . . . . . . . . . AOE 6 | . . . . . 6 . . . . . . . . Classes Destroyed 12 | 2 6 1 . . 3 . . . . . . . . Worker 4 | . 2 . . . 2 . . . . . . . . Builder 2 | . 1 . . . 1 . . . . . . . . Tunneler 4 | 3 . . . 1 . . . . . . . . . Hauler 4 | . 2 . . . . 2 . . . . . . . Recycler 10 | 1 4 . . 2 3 . . . . . . . . Mechanic 1 | . . . . . 1 . . . . . . . . Operator 3 | . 2 . . . . 1 . . . . . . . Watcher 3 | . 3 . . . . . . . . . . . . Swarmer 3 | . . 3 . . . . . . . . . . . Grunt 25 | . 14 2 . 2 7 . . . . . . . . Hunter 1 | . . . . . 1 . . . . . . . . Heavy 1 | . . . . . 1 . . . . . . . . Best Kill Streak 6 | 3 4 3 . 2 6 2 . . . . . . . Combat Bots Only 3 | . 3 3 . 1 3 . . . . . . . . Max Kills in Single Turn 4 | 1 2 1 . 2 4 1 . . . . . . . Gunslinging . | . . . . . . . . . . . . . . Exploded 2 | . . . . . 2 . . . . . . . . Melee . | . . . . . . . . . . . . . . Uniques/NPCs Destroyed . | . . . . . . . . . . . . . . Combat | -11 -10 -10 -10 -9 -8 -7 -6 -5 -4 -3 -2 -2 -2 -------- Run | Yrd Mat Min Exi Min Mat Fac Fac Fac Fac Res Res Tes Sec Hostile Shots Fired 468 | . 31 14 . 2 89 . 81 26 2 8 53 5 157 Missed 199 | . 10 5 . 1 30 . 40 17 1 5 32 1 57 Damage Taken 5587 | . 305 101 . 53 1175 27 634 134 25 232 437 92 2372 Core 2501 | . 59 9 . . 186 6 473 134 . 168 25 . 1441 Absorbed by Shields . | . . . . . . . . . . . . . . Core Remaining (%) 81 | 100 . . . 72 66 99 44 86 100 87 . . . Volleys Fired 137 | 17 56 11 . 4 28 21 . . . . . . . Largest 2 | 2 2 2 . 2 2 1 . . . . . . . Hottest 112 | 80 112 112 . 112 76 20 . . . . . . . Shots Fired 229 | 26 109 17 . 9 47 21 . . . . . . . Gun 142 | 26 86 1 . . 11 18 . . . . . . . Cannon 56 | . 23 16 . 9 8 . . . . . . . . Launcher 28 | . . . . . 28 . . . . . . . . Special 3 | . . . . . . 3 . . . . . . . Kinetic 78 | . 48 1 . . 11 18 . . . . . . . Thermal 17 | 17 . . . . . . . . . . . . . Explosive 28 | . . . . . 28 . . . . . . . . Electromagnetic 103 | 9 61 16 . 9 8 . . . . . . . . Robot Hit Streak 15 | 8 13 15 . 10 13 8 . . . . . . . Robot Miss Streak 4 | 2 3 2 . . 2 4 . . . . . . . Penetration Max . | . . . . . . . . . . . . . . Secondary Targets . | . . . . . . . . . . . . . . Shots Hit Robots 153 | 18 71 11 . 6 33 14 . . . . . . . Core Hits 99 | 5 38 7 . 7 36 5 . . . . . . 1 Critical Kills 1 | . . . . . . 1 . . . . . . . Critical Parts Destroyed 1 | . 1 . . . . . . . . . . . . Critical Strikes 3 | . 1 . . . 1 1 . . . . . . . Destroy 2 | . 1 . . . . 1 . . . . . . . Corrupt 1 | . . . . . 1 . . . . . . . . Melee Attacks 19 | . . . . . . . . . . 1 . . 18 Impact . | . . . . . . . . . . . . . . Slashing . | . . . . . . . . . . . . . . Piercing 19 | . . . . . . . . . . 1 . . 18 Sneak Attacks . | . . . . . . . . . . . . . . Combat Hostiles . | . . . . . . . . . . . . . . Follow-up Attacks . | . . . . . . . . . . . . . . Damage Inflicted 3228 | 247 1193 283 . 235 1173 93 . . . . . . 4 Guns 1112 | 203 737 13 . . 66 93 . . . . . . . Cannons 978 | . 456 242 . 163 117 . . . . . . . . Explosions 1134 | 44 . 28 . 72 990 . . . . . . . . Melee . | . . . . . . . . . . . . . . Ramming 4 | . . . . . . . . . . . . . 4 Kinetic 534 | . 362 13 . . 66 93 . . . . . . . Thermal 297 | 197 . 28 . 72 . . . . . . . . . Explosive 990 | . . . . . 990 . . . . . . . . Electromagnetic 1403 | 50 831 242 . 163 117 . . . . . . . . Impact . | . . . . . . . . . . . . . . Slashing . | . . . . . . . . . . . . . . Piercing . | . . . . . . . . . . . . . . Highest Corruption 7 | . 3 3 3 3 . 5 7 . . . . 1 2 Average Corruption 3 | . 2 3 3 3 . 4 3 . . . . 1 1 Corruption Purged . | . . . . . . . . . . . . . . Corruption Blocked . | . . . . . . . . . . . . . . Effects 60 | . 15 13 7 10 . 8 3 . . . . 1 3 Message Errors 13 | . 6 3 2 1 . 1 . . . . . . . Matter Fused 18 | . 5 3 4 2 . 2 1 . . . . . 1 Heat Flow Errors 4 | . . 1 . 2 . 1 . . . . . . . Energy Discharges 4 | . 1 1 1 . . 1 . . . . . . . Parts Rejected 2 | . . . . . . . 1 . . . . . 1 Data Loss (minor) 13 | . 3 2 . 3 . 3 . . . . . 1 1 Data Loss (major) 3 | . . 1 . 1 . . 1 . . . . . . Misfires 3 | . . 2 . 1 . . . . . . . . . Overload Shots . | . . . . . . . . . . . . . . Overflow Damage 46 | . 20 . . 1 25 . . . . . . . . Projectiles 20 | . 20 . . . . . . . . . . . . Explosions 26 | . . . . 1 25 . . . . . . . . Melee . | . . . . . . . . . . . . . . Knockbacks . | . . . . . . . . . . . . . . Impact . | . . . . . . . . . . . . . . Kinetic . | . . . . . . . . . . . . . . Secondary . | . . . . . . . . . . . . . . Self-Inflicted Damage 48 | . . . . 40 7 . . . . . . . 1 Shots 2 | . . . . 1 1 . . . . . . . . Rammed 3 | . . . . . . . . . . . . . 3 Targets Rammed 3 | . . . . . . . . . . . . . 3 Kicked . | . . . . . . . . . . . . . . Crushed . | . . . . . . . . . . . . . . Highest Temperature 184 | 126 45 73 . 170 17 184 . . . . . 1 23 Average Temperature 37 | 59 17 27 . 53 7 100 . . . . . 1 12 Received Heat Transfer 915 | . 180 39 . 9 243 . 12 9 . . . 9 414 Siege Activations . | . . . . . . . . . . . . . . Robots Corrupted . | . . . . . . . . . . . . . . Combat Hostiles . | . . . . . . . . . . . . . . Parts Fried 2 | . 1 1 . . . . . . . . . . . Impact Corruptions . | . . . . . . . . . . . . . . Robots Melted . | . . . . . . . . . . . . . . Combat Hostiles . | . . . . . . . . . . . . . . Parts Melted . | . . . . . . . . . . . . . . Heat Transferred 550 | 400 . 50 . 100 . . . . . . . . . Parts Sabotaged . | . . . . . . . . . . . . . . Parts Stolen . | . . . . . . . . . . . . . . Parts Stripped . | . . . . . . . . . . . . . . Power Chain Reactions 3 | 1 . 1 . 1 . . . . . . . . . Alert | -11 -10 -10 -10 -9 -8 -7 -6 -5 -4 -3 -2 -2 -2 ------- Run | Yrd Mat Min Exi Min Mat Fac Fac Fac Fac Res Res Tes Sec Peak Influence 2137 | 20 179 245 . 136 205 194 90 194 106 107 96 1630 2137 Initial 1100 | . 13 45 . . 32 67 . 44 91 55 56 54 1100 Average 181 | 8 81 107 . 93 107 130 22 156 93 59 69 1595 1762 Maximum Alert Level 5 | . . 1 . . 1 . . . . . . 5 5 Low Security (%) 91 | 100 100 93 . 100 76 100 100 100 100 100 100 . . Level 1 2 | . . 6 . . 23 . . . . . . . . Level 2 . | . . . . . . . . . . . . . . Level 3 . | . . . . . . . . . . . . . . Level 4 . | . . . . . . . . . . . . . . Level 5 . | . . . . . . . . . . . . . . High Security . | . . . . . . . . . . . . . . Max Security 5 | . . . . . . . . . . . . 99 99 Squads Dispatched 40 | . 5 . . . 5 2 3 4 . 2 1 6 12 Investigation 5 | . 3 . . . 1 . . 1 . . . . . Extermination 4 | . . . . . . . 1 1 . 1 1 . . Reinforcement 12 | . 2 . . . 3 2 2 2 . 1 . . . Assault 18 | . . . . . . . . . . . . 6 12 Garrison 1 | . . . . . 1 . . . . . . . . Intercept . | . . . . . . . . . . . . . . Searches Triggered . | . . . . . . . . . . . . . . Construction Impeded . | . . . . . . . . . . . . . . Haulers Reinforced 1 | . . . . . . 1 . . . . . . . Active Scanning Responses . | . . . . . . . . . . . . . . Cargo Convoy Interrupts . | . . . . . . . . . . . . . . Stealth | -11 -10 -10 -10 -9 -8 -7 -6 -5 -4 -3 -2 -2 -2 --------- Run | Yrd Mat Min Exi Min Mat Fac Fac Fac Fac Res Res Tes Sec Distress Signals 7 | . 2 . . . 1 . . 2 . 1 1 . . Communications Jammed 14 | . . . . . . . . . . . . . 14 Distress Signals 14 | . . . . . . . . . . . . . 14 Times Spotted 192 | . 22 8 . 1 21 7 16 15 1 14 10 2 75 Peak Tracking Total 36 | . 5 3 . 1 11 4 8 6 1 5 8 7 36 Tactical Retreats 23 | . 2 . . . 2 3 2 4 . 4 1 . 5 Traps | -11 -10 -10 -10 -9 -8 -7 -6 -5 -4 -3 -2 -2 -2 ------- Run | Yrd Mat Min Exi Min Mat Fac Fac Fac Fac Res Res Tes Sec Traps Triggered 20 | . 5 . . . . 6 2 2 . 2 . 2 1 Indirectly . | . . . . . . . . . . . . . . Trap Hack Attempts . | . . . . . . . . . . . . . . Triggered . | . . . . . . . . . . . . . . Disarmed . | . . . . . . . . . . . . . . Reprogrammed 6 | . . . . . . . . . . 6 . . . Reused 5 | . . . . . . 1 . . . 4 . . . Traps Reconfigurated 3 | . . . . . . 3 . . . . . . . Traps Extracted . | . . . . . . . . . . . . . . Installed . | . . . . . . . . . . . . . . Triggered 5 | . . . . . . 1 . . . 4 . . . Machines | -11 -10 -10 -10 -9 -8 -7 -6 -5 -4 -3 -2 -2 -2 ---------- Run | Yrd Mat Min Exi Min Mat Fac Fac Fac Fac Res Res Tes Sec Machines Disabled 5 | . 2 2 . 1 . . . . . . . . . Max in Single Turn 1 | . 1 1 . 1 . . . . . . . . . Machines Repaired . | . . . . . . . . . . . . . . Machines Dismantled . | . . . . . . . . . . . . . . Machines Sabotaged . | . . . . . . . . . . . . . . Overloaded Fab Kills . | . . . . . . . . . . . . . . Hacking | -11 -10 -10 -10 -9 -8 -7 -6 -5 -4 -3 -2 -2 -2 --------- Run | Yrd Mat Min Exi Min Mat Fac Fac Fac Fac Res Res Tes Sec Machines Accessed 27 | . 3 1 1 . 2 7 1 2 1 7 2 . . Terminals 15 | . 2 1 . . . 3 . 1 1 6 1 . . Fabricators 1 | . . . . . . 1 . . . . . . . Repair Stations 2 | . . . . . . 1 . . . 1 . . . Recycling Units 4 | . 1 . . . . 1 . 1 . . 1 . . Scanalyzers 2 | . . . . . 1 1 . . . . . . . Garrison Access 2 | . . . . . 1 . 1 . . . . . . Total Hacks 60 | . 5 2 1 . 6 20 2 4 2 16 2 . . Successful 29 | . 3 1 1 . 4 11 . 1 . 7 1 . . Failed 31 | . 2 1 . . 2 9 2 3 2 9 1 . . Catastrophic 8 | . . . . . 1 2 . 1 . 3 1 . . Database Lockouts . | . . . . . . . . . . . . . . Manual 17 | . 3 2 1 . . 1 . . 2 6 2 . . Terminals 32 | . 4 2 . . . 6 . 2 2 15 1 . . Fabricators 2 | . . . . . . 2 . . . . . . . Repair Stations 3 | . . . . . . 2 . . . 1 . . . Recycling Units 6 | . 1 . . . . 2 . 2 . . 1 . . Scanalyzers 12 | . . . . . 4 8 . . . . . . . Garrison Access 4 | . . . . . 2 . 2 . . . . . . Terminal Hacks 14 | . 2 1 1 . . 2 . 1 . 7 . . . Record 1 | . . . . . . . . . . 1 . . . Robot Analysis 1 | . 1 . . . . . . . . . . . . Prototype ID Bank 1 | . 1 . . . . . . . . . . . . Open DSF 1 | . . . . . . . . . . 1 . . . Level Access Points 1 | . . . . . . . . . . 1 . . . Branch Access Points 1 | . . . . . . 1 . . . . . . . Unreport Threat 1 | . . . . . . . . . . 1 . . . Reprogram Traps 1 | . . . . . . . . . . 1 . . . Dispatch Records 1 | . . 1 . . . . . . . . . . . Recall Investigation 1 | . . . . . . 1 . . . . . . . Recall Extermination 1 | . . . . . . . . . . 1 . . . Recall Reinforcements 2 | . . . . . . . . 1 . 1 . . . Derelict Proto ID Bank 1 | . . . 1 . . . . . . . . . . Fabricator Hacks 1 | . . . . . . 1 . . . . . . . Load Schematic 1 | . . . . . . 1 . . . . . . . Repair Station Hacks 1 | . . . . . . 1 . . . . . . . Scan Component 1 | . . . . . . 1 . . . . . . . Recycling Unit Hacks 3 | . 1 . . . . 1 . . . . 1 . . Retrieve Matter 2 | . . . . . . 1 . . . . 1 . . Retrieve Components 1 | . 1 . . . . . . . . . . . . Scanalyzer 10 | . . . . . 4 6 . . . . . . . Insert Component 5 | . . . . . 2 3 . . . . . . . Analyze 5 | . . . . . 2 3 . . . . . . . Garrison Access Hacks . | . . . . . . . . . . . . . . Unauthorized Hacks . | . . . . . . . . . . . . . . Terminals . | . . . . . . . . . . . . . . Fabricators . | . . . . . . . . . . . . . . Repair Stations . | . . . . . . . . . . . . . . Recycling Units . | . . . . . . . . . . . . . . Scanalyzers . | . . . . . . . . . . . . . . Garrison Access . | . . . . . . . . . . . . . . Data Cores Recovered . | . . . . . . . . . . . . . . Used . | . . . . . . . . . . . . . . Hacking Detections 22 | . 2 1 . . 2 6 1 2 1 5 2 . . Full Trace Events 2 | . . . . . 1 . . 1 . . . . . Feedback Events . | . . . . . . . . . . . . . . Feedback Blocked . | . . . . . . . . . . . . . . Robot Schematics Acquired . | . . . . . . . . . . . . . . Robots Built . | . . . . . . . . . . . . . . Authchips . | . . . . . . . . . . . . . . Time . | . . . . . . . . . . . . . . Total Robot Build Rating . | . . . . . . . . . . . . . . Part Schematics Acquired 4 | . . . . . 2 2 . . . . . . . Parts Built . | . . . . . . . . . . . . . . Authchips . | . . . . . . . . . . . . . . Time . | . . . . . . . . . . . . . . Total Part Build Rating . | . . . . . . . . . . . . . . Parts Repaired . | . . . . . . . . . . . . . . Time . | . . . . . . . . . . . . . . Parts Recycled . | . . . . . . . . . . . . . . Recycled Matter . | . . . . . . . . . . . . . . Retrieved Matter . | . . . . . . . . . . . . . . Retrieved Components 10 | . 10 . . . . . . . . . . . . Parts Scanalyzed 5 | . . . . . 2 3 . . . . . . . Part Schematics Acquired 4 | . . . . . 2 2 . . . . . . . Parts Damaged . | . . . . . . . . . . . . . . Bothacking | -11 -10 -10 -10 -9 -8 -7 -6 -5 -4 -3 -2 -2 -2 ------------ Run | Yrd Mat Min Exi Min Mat Fac Fac Fac Fac Res Res Tes Sec Used RIF Installer . | . . . . . . . . . . . . . . Robots Hacked 1 | . . . . . . 1 . . . . . . . Non-combat 1 | . . . . . . 1 . . . . . . . Combat . | . . . . . . . . . . . . . . Robot Hacks Applied 3 | . . . . . . 3 . . . . . . . parse_system 1 | . . . . . . 1 . . . . . . . no_distress 1 | . . . . . . 1 . . . . . . . find_fabricator 1 | . . . . . . 1 . . . . . . . Relay Couplers Released . | . . . . . . . . . . . . . . Fabnet Peak Effective % . | . . . . . . . . . . . . . . Robots Rewired . | . . . . . . . . . . . . . . Allies Hacked . | . . . . . . . . . . . . . . Hacks Repelled . | . . . . . . . . . . . . . . Allies | -11 -10 -10 -10 -9 -8 -7 -6 -5 -4 -3 -2 -2 -2 -------- Run | Yrd Mat Min Exi Min Mat Fac Fac Fac Fac Res Res Tes Sec Total Allies 7 | . . 4 . . . . . 3 . . . . . Largest Group 4 | . . 4 4 3 2 . . 3 . . . . . Highest-Rated Group 93 | . . 71 71 40 24 . . 93 . . . . . Highest-Rated Ally 31 | . . 31 31 16 16 . . 31 . . . . . Total Orders . | . . . . . . . . . . . . . . Ally Attacks 59 | . . 5 . 12 16 . . 26 . . . . . Total Damage 883 | . . 109 . 177 213 . . 384 . . . . . Kills 10 | . . 1 . 6 2 . . 1 . . . . . Allies Corrupted . | . . . . . . . . . . . . . . Allies Melted . | . . . . . . . . . . . . . . Intel | -11 -10 -10 -10 -9 -8 -7 -6 -5 -4 -3 -2 -2 -2 ------- Run | Yrd Mat Min Exi Min Mat Fac Fac Fac Fac Res Res Tes Sec Robot Analysis Total 1 | . 1 . . . . . . . . . . . . Derelict Logs Recovered 3 | . . 2 . 1 . . . . . . . . . Drone Launches . | . . . . . . . . . . . . . . Drone Recoveries . | . . . . . . . . . . . . . . Exploration | -11 -10 -10 -10 -9 -8 -7 -6 -5 -4 -3 -2 -2 -2 ------------- Run | Yrd Mat Min Exi Min Mat Fac Fac Fac Fac Res Res Tes Sec Turns Passed 7296 | 119 2110 886 470 586 505 420 493 311 22 636 337 119 282 Spaces Moved 7262 | 58 1152 518 282 324 278 639 659 688 54 1148 635 342 485 Core 163 | 2 . . . . 1 8 149 . . . . . 3 Treads 2453 | . 1150 518 282 324 179 . . . . . . . . Legs . | . . . . . . . . . . . . . . Wheels 58 | 56 2 . . . . . . . . . . . . Hover . | . . . . . . . . . . . . . . Flight 4588 | . . . . . 98 631 510 688 54 1148 635 342 482 Fastest Speed 27 | 50 100 160 160 160 31 27 35 35 30 30 28 28 28 Average Speed 80 | 98 159 160 160 160 142 35 72 35 30 30 29 28 29 Slowest Speed 300 | 100 160 160 160 160 300 300 200 35 30 30 30 28 107 Overloaded Moves . | . . . . . . . . . . . . . . Propulsion Burnouts . | . . . . . . . . . . . . . . Robots Hopped 27 | . . . . . . 2 3 4 . 10 8 . . Cave-ins Triggered . | . . . . . . . . . . . . . . Exploration Rate (%) 35 | 5 97 66 69 50 28 19 27 20 1 28 16 49 21 Regions Visited 13 Branch Regions 5 Pre-discovered Areas 1 | . . 1 . . . . . . . . . . . Known Exits Taken 3 | . . . . 1 1 . . . . 1 . . . Unknown Exits Taken 10 | 1 1 1 1 . . 1 1 1 1 . 1 1 . Scrap Searched 2 | . . 1 . 1 . . . . . . . . . Spaces Dug 11 | . . . . . 7 . . . . . . . 4 Terrain Destroyed 135 | 8 . 3 . 7 113 . . . . . . . 4 Melee 4 | . . . . . . . . . . . . . 4 Projectile . | . . . . . . . . . . . . . . AOE 131 | 8 . 3 . 7 113 . . . . . . . . Terrain Rammed . | . . . . . . . . . . . . . . Walls Destroyed . | . . . . . . . . . . . . . . Machines Disabled . | . . . . . . . . . . . . . . Actions | -11 -10 -10 -10 -9 -8 -7 -6 -5 -4 -3 -2 -2 -2 --------- Run | Yrd Mat Min Exi Min Mat Fac Fac Fac Fac Res Res Tes Sec Total 8447 | 90 1317 560 302 384 338 819 668 757 58 1424 777 365 588 Wait 801 | . 54 26 17 54 8 90 9 65 . 267 144 . 67 Move 7197 | 57 1151 517 281 323 277 634 652 680 53 1128 618 341 485 Hop 25 | . . . . . . 2 3 3 . 9 8 . . Pick Up 61 | 9 18 . 1 . 1 19 1 4 . 3 . 2 3 Fast Attach 35 | 6 . . . 1 4 9 . . 1 7 4 . 3 Attach 36 | 1 2 . . 1 9 7 1 . 4 4 . 2 5 Detach 14 | . . . . 1 5 4 . . . 3 1 . . Swap 32 | . 16 4 1 . 5 3 . . . 1 1 1 . Drop 53 | . 20 2 2 . 1 14 2 5 . 1 1 1 4 Fire 137 | 17 56 11 . 4 28 21 . . . . . . . Melee 19 | . . . . . . . . . . 1 . . 18 Ram 3 | . . . . . . . . . . . . . 3 Kick . | . . . . . . . . . . . . . . Crush . | . . . . . . . . . . . . . . Escape Stasis 34 | . . . . . . 16 . . . . . 18 . Rewire . | . . . . . . . . . . . . . . Trap . | . . . . . . . . . . . . . . Miscellaneous . | . . . . . . . . . . . . . . Route ------- -11/Scrapyard -10/Materials (discovered 5 exits: [*Mat x3] / *Min x2) -10/Mines (discovered 2 exits: [*Mat] / *Exi) -10/Exiles -9/Mines -8/Materials (discovered 2 exits: *Fac x2) -7/Factory (discovered 3 exits: *Fac / Low x2) -6/Factory -5/Factory -4/Factory -3/Research (discovered 3 exits: *Res x3) -2/Research -2/Testing -2/Section 7 (discovered 1 exit: [*Acc]) History --------- Turn | Location | Event 29 | -11/Scrapyard | Discovered new exit (range 15) 120 | -11/Scrapyard | Entered Materials 311 | -10/Materials | Build established: Mutant 659 | -10/Materials | Discovered new exit (range 11) 806 | -10/Materials | Discovered new exit (range 12) 1235 | -10/Materials | Discovered new exit (range 8) 1243 | -10/Materials | Discovered new exit (range 8) 1803 | -10/Materials | Discovered new exit (range 14) 2230 | -10/Materials | Entered Mines 2237 | -10/Mines | Met a Derelict bent on vengeance 2294 | -10/Mines | Escorted by a lone wolf Derelict 2347 | -10/Mines | Joined a pair of Derelicts in attacking an 0b10 outpost 2430 | -10/Mines | Learned location of Zion (-6) 2446 | -10/Mines | Deemed a non-threat by the Exiles lab entrance 2446 | -10/Mines | Discovered new exit (range 5) 2497 | -10/Mines | Learned 4 Materials zone layouts 2642 | -10/Mines | Build established: Scavenger-Mutant 2817 | -10/Mines | Discovered new exit (range 11) 2829 | -10/Mines | Assisted by bots powering up and referring to "LRC-V3" 3116 | -10/Mines | Entered Exiles 3116 | -10/Exiles | Accompanied by 4 allies 3155 | -10/Exiles | Met 8R-AWN 3180 | -10/Exiles | Met EX-HEX 3324 | -10/Exiles | Met EX-BIN 3347 | -10/Exiles | Aligned with FarCom system 3348 | -10/Exiles | Given EX-Vault access code 3385 | -10/Exiles | Opened EX-Vault 3399 | -10/Exiles | Found Trap Reconfigurator 3435 | -10/Exiles | Warned to stay clear of 0b10 Research branches 3452 | -10/Exiles | Exiles lab attacked by MAIN.C 3533 | -10/Exiles | Build established: Mutant 3550 | -10/Exiles | Discovered new exit (range 14) 3586 | -10/Exiles | Left Exiles lab with Trap Reconfigurator 3586 | -10/Exiles | Entered Mines 3586 | -9/Mines | Accompanied by 3 allies 3671 | -9/Mines | Identified exit to Materials 3937 | -9/Mines | Assembled infested the area 3942 | -9/Mines | Assisted by a Guerilla fighting off Assembled 4172 | -9/Mines | Entered Materials 4172 | -8/Materials | Accompanied by 2 allies 4172 | -8/Materials | Evolved 4 slots: Propulsion x2, Utility x2 4173 | -8/Materials | Identified exit to Factory 4340 | -8/Materials | Lost 3 parts (1n2u) 4638 | -8/Materials | Lost 3 parts (1p1n1u) 4649 | -8/Materials | Garrison activated, responded to threat 4671 | -8/Materials | Discovered exit to Factory (range 15) 4677 | -8/Materials | Entered Factory 4677 | -7/Factory | Evolved 2 slots: Utility x2 4698 | -7/Factory | Lost 5 parts (1p3n1u) 5031 | -7/Factory | Identified exit to Lower Caves 5055 | -7/Factory | Discovered new exit (range 5) 5097 | -7/Factory | Entered another Factory area 5097 | -6/Factory | Evolved 2 slots: Power x1, Propulsion x1 5528 | -6/Factory | Core integrity fell below 50% 5580 | -6/Factory | Discovered new exit (range 5) 5590 | -6/Factory | Entered another Factory area 5590 | -5/Factory | Evolved 2 slots: Utility x2 5755 | -5/Factory | Allied Derelicts emerged from ambush trap array 5789 | -5/Factory | Discovered new exit (range 13) 5901 | -5/Factory | Entered another Factory area 5901 | -4/Factory | Evolved 2 slots: Utility x2 5912 | -4/Factory | Discovered new exit (range 6) 5923 | -4/Factory | Entered Research 5923 | -3/Research | Evolved 2 slots: Utility x2 5994 | -3/Research | Spotted B-86 Titan 6048 | -3/Research | Identified exit to Research 6481 | -3/Research | Build established: Hacker-Sprinter 6559 | -3/Research | Entered another Research area 6559 | -2/Research | Evolved 2 slots: Propulsion x1, Utility x1 6679 | -2/Research | Spotted B-90 Cyclops 6890 | -2/Research | Discovered new exit (range 16) 6896 | -2/Research | Entered Testing 6897 | -2/Testing | Maximum security lockdown engaged 6991 | -2/Testing | Spotted Fortress 7013 | -2/Testing | Discovered new exit (range 6) 7015 | -2/Testing | Entered Section 7 7016 | -2/Section 7 | Maximum security lockdown engaged 7166 | -2/Section 7 | Spotted Executioner 7166 | -2/Section 7 | Spotted Striker 7173 | -2/Section 7 | Spotted Striker 7173 | -2/Section 7 | Spotted Striker 7179 | -2/Section 7 | Build established: Sprinter 7215 | -2/Section 7 | Discovered new exit (range 14) 7227 | -2/Section 7 | Lost 5 parts (1p3n1u) 7263 | -2/Section 7 | Spotted Executioner 7263 | -2/Section 7 | Spotted Executioner 7273 | -2/Section 7 | Spotted S7 Guard 7278 | -2/Section 7 | Core integrity fell below 50% 7282 | -2/Section 7 | Spotted Investigator 7294 | -2/Section 7 | Core integrity fell below 20% 7297 | -2/Section 7 | Destroyed by G-73 Enforcer with Phase Gun Last Messages --------------- L-61 Swordsman unfolds itself. I-47 Archangel unfolds itself. Investigator unfolds itself. Investigator: "PRIMARY THREAT IDENTIFIED. CONTAINMENT PROTOCOL APPLICABLE." Critical hit (Burn: +37). C-30 ARC bursts open, deploying its payload. G-73 Enforcer unfolds itself. I-47 Archangel unfolds itself. C-30 ARC bursts open, deploying its payload. G-73 Enforcer unfolds itself. M-36 Artificer unfolds itself. Quantum Reactor destroyed. Adv. Transmission Jammer destroyed. Imp. Melee Analysis Suite destroyed. Slammed into P-80 Master. Penetrated by Slug. Slug penetrates Wall. Critical hit (Burn: +37). Slammed into P-80 Master. Map ----- +----------------------------------------------------+ | | | | | | | | | | | | | | | | | | | | | ?????????????????????????????????????????????????? | | ?????????????????????????????????????????????????? | | ?????????????????????????????????????????????????? | | ?????????????????????????????????????????????????? | | ?????????????????????????????????????????????????? | | ??????????????????#####??????????????????????????? | | ??????????????????# #??????????????????????????? | | ??????????????????# ! #??????????????????????????? | | ??????????????????# #??????????????????????????? | | ??????????????????# #??????????????????????????? | | ??????????????????# #??????????????????????????? | | ??????????????????# #??????????????????????????? | | ??????????????????# #??###?????????????????????? | | #############+######i#####T#?????????????????????? | | % i ggEggg "?????????????????????? | | i gbg YYeEg @ "?????????????????????? | | gg ####g####p;#?????????????????????? | | #??YcY??####?????????????????????? | | g bg lg#?b ???????????????????????????? | | "" """ """ """ #? g!= ??????????????????????????? | | "" """ """ """ #YC/!= ??????????????????????????? | | "" """ """g""" # C/= #?????????????????????????? | | "" """ """ """g l / ?????????????????????????? | | "" """ """ """ ##+#####?????????????????????????? | | #?????????????????????????????? | | #?????????????????????????????? | | #####+### #?????????????????????????????? | | ???? ?##+#########?????????????????????????????? | | ????"" ?# ????????????????????????????????????? | | ??""" #!!! "??????????????????????????????????? | | ??""" #!!! " "????????????????????????????????? | | # #!!! """ #??????????????????????????????? | | # ! # #??????????????????????????????? | | # # """ """ #??????????????????????????????? | | #"" # """S""" #??????????????????????????????? | | ##"" # #??????????????????????????????? | | ???T ###########??????????????????????????????? | | ???" #????????????????????????????????????????? | | ???" #????????????????????????????????????????? | | ??? #????????????????????????????????????????? | +----------------------------------------------------+ Best States ------------- Heat Dissipation 69 Energy Generation 39 Energy Capacity 410 Matter Stores 300 Matter Capacity 300 Sight Range 22 Terrain Scan Range 16 Terrain Scan Density 10 ECM Strength 1 Jamming Range 16 Cloak Strength 2 Additional Mass Support 6 Armor Coverage 300 Point Defense Rating 240 Evasion (%) 64 Targeting Accuracy 5 Melee Accuracy 6 Recoil Reduction 2 Energy Filtering 30 Offensive Hacking 20 Item Schematics ----------------- Flight Unit | -8/Materials | Scanalyzed Lgt. Nuclear Core | -8/Materials | Scanalyzed Ion Engine | -7/Factory | Scanalyzed Remote Datajack | -7/Factory | Scanalyzed Robot Schematics ------------------ None Fabricated ------------ Nothing Alien Tech Used ----------------- None Achievements -------------- Hunted No Signal Nope Novice Programmer Part-time Excavator Challenges ------------ None Game ------ Seed TowerThermicShielding Manual? 0 Play Time 02:10:07 Cumulative 35.0 hours Start 2024.08.06 @ 19:06:41 End 2024.08.08 @ 22:16:21 Sessions 9 Manual Loads 0 Difficulty Rogue Special Mode None Game No. 26 Rogue 14 Adventurer 12 Explorer 0 Win Type - Total 0 Types 0/0/0/0/0/0/0/0/0 Lore% 10 Gallery% 22 Achievement% 23 Wizard Run 0 Options --------- Layout 1 ASCII 0 Keyboard 0 Movement Numpad Keybinds 0 Fullscreen 1 Font 24/Smallcaps Map View 50x35 Zoom Use 0% Tactical HUD 0 Map Filters NONE Filters NONE Steam 1 RUN: 14ecbbb2-1a37-4ed3-bb2a-92562ebe7e76